Cogmind - Beta 13 @@@ ROGUE MODE // 2024.04.06 @ 20:17:04 Player: Redman9012 Result: Destroyed by Explosive Trap Performance ------------- Evolutions (1) 500 Regions Visited (2) 400 Robots Destroyed (73) 365 Value Destroyed (1980) 1980 Prototype IDs (2) 40 Alien Tech Used (0) 0 Bonus (0) 0 TOTAL SCORE: 3285 Bonus ------- None Cogmind --------- Core Integrity 0/400 Matter 300/300 Energy 261/265 System Corruption 0% Temperature Cool (2) Movement Treading (240) Ox1 Location -9/Materials Parts ------- > --- POWER (1) -------- Improved Ion Engine > --- PROPULSION (2) --- Improved Treads Improved Treads > --- UTILITY (4) ------ High-capacity Storage Unit Transport Network Coupler Power Shielding Hacking Suite > --- WEAPON (2) ------- Particle Cannon Light Cannon > --- INVENTORY (20) --- Light Nuclear Core Improved Treads Improved Treads Cooling System Cooling System High-capacity Matter Pod (200) Structural Scanner Visual Processing Unit Improved Terrain Scanner Seismic Detector Light Armor Plating Light Armor Plating Shield Generator Light EM Pulse Cannon Particle Cannon Particle Cannon Particle Cannon Heavy Assault Rifle Improved Light Cannon Datajack Peak State ------------ > --- POWER ------------ Improved Ion Engine > --- PROPULSION ------- Improved Treads Improved Treads > --- UTILITY ---------- High-capacity Storage Unit Transport Network Coupler Power Shielding Hacking Suite > --- WEAPON ----------- Particle Cannon Light Cannon > --- INVENTORY -------- Light Nuclear Core Improved Treads Improved Treads Cooling System Cooling System High-capacity Matter Pod Structural Scanner Visual Processing Unit Improved Terrain Scanner Seismic Detector Light Armor Plating Light Armor Plating Shield Generator Light EM Pulse Cannon Particle Cannon Heavy Assault Rifle Improved Light Cannon Datajack [Rating: 18] Favorites ----------- Power Ion Engine Engine Ion Engine Propulsion Light Treads Treads Light Treads Utility Hacking Suite Storage High-capacity Storage Unit Processor Transport Network Coupler Hackware Hacking Suite Protection Propulsion Shielding Weapon Light Cannon Energy Gun Small Laser Energy Cannon Particle Cannon Ballistic Gun Light Assault Rifle Ballistic Cannon Light Cannon Build | -11 -10 -9 ------- Run | Yrd Mat Mat Slots Evolved 2 | . . 2 Power . | . . . Propulsion . | . . . Utility 2 | . . 2 Weapon . | . . . Parts Attached 30 | 6 7 17 Power 6 | 1 1 4 Engine 6 | 1 1 4 Core . | . . . Reactor . | . . . Propulsion 6 | 2 . 4 Treads 6 | 2 . 4 Leg . | . . . Wheel . | . . . Hover . | . . . Flight . | . . . Utility 7 | 1 3 3 Device . | . . . Storage 3 | 1 2 . Processor 1 | . . 1 Hackware 1 | . 1 . Protection 2 | . . 2 Artifact . | . . . Weapon 11 | 2 3 6 Energy Gun 1 | 1 . . Energy Cannon 4 | . 1 3 Ballistic Gun 1 | 1 . . Ballistic Cannon 5 | . 2 3 Launcher . | . . . Special Weapon . | . . . Impact Weapon . | . . . Slashing Weapon . | . . . Piercing Weapon . | . . . Special Melee Weapon . | . . . Unidentified Prototypes . | . . . Parts Lost 15 | . 1 14 Power 4 | . . 4 Propulsion 3 | . . 3 Utility 1 | . . 1 Weapon 7 | . 1 6 Highest Loss Streak 4 | . 1 4 To Critical Strikes . | . . . Average Slot Usage (%) 95 | . 91 98 Engine 12 | . 14 10 Treads 24 | . 28 21 Storage 12 | . 14 11 Processor 5 | . . 11 Hackware 11 | . 12 11 Protection 5 | . . 10 Energy Cannon 5 | . . 10 Ballistic Cannon 15 | . 20 11 Naked Turns . | . . . Heaviest Build 55 | 10 52 55 Greatest Support 46 | 40 40 46 Greatest Overweight (x) 2 | . 1 2 Average Overweight (x) . | . . . Largest Inventory Capacity 20 | 8 20 20 Average Capacity 18 | 6 17 20 Most Carried 20 | 5 19 20 Average Carried 16 | 3 14 18 Final Capacity 20 | 8 20 20 Final Carried 20 | 2 18 20 Class Distribution -------------------- 91% | Mutant 8% | Scavenger-Mutant Dominant Class ---------------- Mutant | -10/Materials Mutant | -9/Materials Resources | -11 -10 -9 ----------- Run | Yrd Mat Mat Matter Collected 1699 | 211 896 592 Remotely . | . . . Salvage Created 2411 | . 877 1534 Parts 127 | . 44 83 Haulers Intercepted 4 | . 2 2 Recyclers Shooed 5 | . 2 3 Parts Field Recycled . | . . . Retrieved Matter . | . . . Parts Self-Destructed . | . . . Prevented . | . . . Kills | -11 -10 -9 ------- Run | Yrd Mat Mat Combat Hostiles Destroyed 49 | . 18 31 Cannons 49 | . 18 31 Classes Destroyed 9 | . 8 1 Worker 5 | . 2 3 Builder 1 | . 1 . Hauler 4 | . 2 2 Recycler 7 | . 3 4 Operator 2 | . 2 . Watcher 5 | . 3 2 Swarmer 3 | . 3 . Grunt 37 | . 15 22 Sentry 9 | . . 9 Best Kill Streak 6 | . 6 6 Combat Bots Only 5 | . 4 5 Max Kills in Single Turn 2 | . 1 2 Gunslinging . | . . . Exploded . | . . . Melee . | . . . Uniques/NPCs Destroyed . | . . . Combat | -11 -10 -9 -------- Run | Yrd Mat Mat Hostile Shots Fired 295 | . 78 217 Missed 87 | . 23 64 Damage Taken 2588 | . 626 1962 Core 539 | . 120 419 Absorbed by Shields . | . . . Redirected to Shielding 84 | . . 84 Regen/Repaired (Parts) 110 | . . 110 Core Remaining (%) 76 | 100 52 . Volleys Fired 202 | . 76 126 Largest 2 | . 2 2 Hottest 103 | . 91 103 Shots Fired 371 | . 143 228 Gun . | . . . Cannon 371 | . 143 228 Launcher . | . . . Special . | . . . Kinetic 265 | . 140 125 Thermal 93 | . . 93 Explosive . | . . . Electromagnetic 13 | . 3 10 Robot Hit Streak 8 | . 7 8 Robot Miss Streak 6 | . 6 4 Penetration Max . | . . . Secondary Targets . | . . . Shots Hit Robots 216 | . 75 141 Core Hits 84 | . 34 50 Critical Kills . | . . . Critical Parts Destroyed . | . . . Critical Strikes 5 | . 2 3 Blast 5 | . 2 3 Melee Attacks . | . . . Impact . | . . . Slashing . | . . . Piercing . | . . . Sneak Attacks . | . . . Combat Hostiles . | . . . Follow-up Attacks . | . . . Damage Inflicted 4367 | . 1476 2891 Guns . | . . . Cannons 4267 | . 1386 2881 Explosions 64 | . 64 . Melee . | . . . Ramming 36 | . 26 10 Kinetic 2855 | . 1338 1517 Thermal 1231 | . 64 1167 Explosive . | . . . Electromagnetic 245 | . 48 197 Impact . | . . . Slashing . | . . . Piercing . | . . . Highest Corruption . | . . . Average Corruption . | . . . Corruption Purged . | . . . Corruption Blocked . | . . . Overload Shots . | . . . Overflow Damage 33 | . 9 24 Projectiles 33 | . 9 24 Explosions . | . . . Melee . | . . . Knockbacks 25 | . 14 11 Impact 1 | . . 1 Kinetic 24 | . 14 10 Secondary . | . . . Self-Inflicted Damage . | . . . Shots . | . . . Rammed 7 | . 4 3 Targets Rammed 8 | . 4 4 Kicked . | . . . Crushed 1 | . . 1 Highest Temperature 336 | . 195 336 Average Temperature 81 | . 43 100 Received Heat Transfer 1272 | . 303 969 Effects 2 | . . 2 Energy Bleed 2 | . . 2 Siege Activations . | . . . Robots Corrupted . | . . . Combat Hostiles . | . . . Parts Fried . | . . . Impact Corruptions . | . . . Robots Melted . | . . . Combat Hostiles . | . . . Parts Melted 1 | . . 1 Heat Transferred 2159 | . 50 2109 Parts Sabotaged . | . . . Parts Stolen . | . . . Parts Stripped . | . . . Power Chain Reactions 1 | . 1 . Alert | -11 -10 -9 ------- Run | Yrd Mat Mat Peak Influence 376 | . 199 376 Initial . | . . . Average 102 | . 44 164 Maximum Alert Level 1 | . . 1 Low Security (%) 82 | 100 100 63 Level 1 17 | . . 36 Level 2 . | . . . Level 3 . | . . . Level 4 . | . . . Level 5 . | . . . High Security . | . . . Max Security . | . . . Squads Dispatched 15 | . 8 7 Investigation 10 | . 6 4 Extermination . | . . . Reinforcement 5 | . 2 3 Assault . | . . . Garrison . | . . . Intercept . | . . . Searches Triggered . | . . . Construction Impeded . | . . . Haulers Reinforced . | . . . Active Scanning Responses . | . . . Cargo Convoy Interrupts . | . . . Stealth | -11 -10 -9 --------- Run | Yrd Mat Mat Distress Signals 5 | . 3 2 Communications Jammed . | . . . Distress Signals . | . . . Times Spotted 72 | . 28 44 Peak Tracking Total 6 | . 5 6 Tactical Retreats . | . . . Traps | -11 -10 -9 ------- Run | Yrd Mat Mat Traps Triggered 4 | . 3 1 Indirectly . | . . . Trap Hack Attempts . | . . . Triggered . | . . . Disarmed . | . . . Reprogrammed . | . . . Reused . | . . . Traps Extracted . | . . . Installed . | . . . Triggered . | . . . Machines | -11 -10 -9 ---------- Run | Yrd Mat Mat Machines Disabled 5 | . 1 4 Max in Single Turn 1 | . 1 1 Machines Repaired . | . . . Machines Dismantled . | . . . Machines Sabotaged . | . . . Overloaded Fab Kills . | . . . Hacking | -11 -10 -9 --------- Run | Yrd Mat Mat Machines Accessed 12 | . 6 6 Terminals 11 | . 6 5 Fabricators . | . . . Repair Stations 1 | . . 1 Recycling Units . | . . . Scanalyzers . | . . . Garrison Access . | . . . Total Hacks 58 | . 26 32 Successful 35 | . 15 20 Failed 23 | . 11 12 Catastrophic 3 | . 1 2 Database Lockouts . | . . . Manual 1 | . 1 . Terminals 56 | . 26 30 Fabricators . | . . . Repair Stations 2 | . . 2 Recycling Units . | . . . Scanalyzers . | . . . Garrison Access . | . . . Terminal Hacks 33 | . 15 18 Record 7 | . 3 4 Prototype ID Bank 1 | . . 1 Branch Access Points 1 | . 1 . Recycling Unit Index 1 | . 1 . Alert Level 3 | . 1 2 Unreport Threat 3 | . 2 1 Locate Traps 1 | . 1 . Dispatch Records 1 | . 1 . Surveillance Status 2 | . 2 . Reinforcement Status 8 | . . 8 Hauler Manifests 2 | . 2 . Registered Components 1 | . . 1 Zone Layout 2 | . 1 1 Fabricator Hacks . | . . . Repair Station Hacks 2 | . . 2 Scan Component 1 | . . 1 Repair 1 | . . 1 Recycling Unit Hacks . | . . . Scanalyzer . | . . . Garrison Access Hacks . | . . . Unauthorized Hacks . | . . . Terminals . | . . . Fabricators . | . . . Repair Stations . | . . . Recycling Units . | . . . Scanalyzers . | . . . Garrison Access . | . . . Data Cores Recovered . | . . . Used . | . . . Hacking Detections 11 | . 6 5 Full Trace Events 11 | . 6 5 Feedback Events . | . . . Feedback Blocked . | . . . Robot Schematics Acquired . | . . . Robots Built . | . . . Authchips . | . . . Time . | . . . Total Robot Build Rating . | . . . Part Schematics Acquired . | . . . Parts Built . | . . . Authchips . | . . . Time . | . . . Total Part Build Rating . | . . . Parts Repaired 1 | . . 1 Time 32 | . . 32 Parts Recycled . | . . . Recycled Matter . | . . . Retrieved Matter . | . . . Retrieved Components . | . . . Parts Scanalyzed . | . . . Part Schematics Acquired . | . . . Parts Damaged . | . . . Bothacking | -11 -10 -9 ------------ Run | Yrd Mat Mat Used RIF Installer . | . . . Robots Hacked . | . . . Non-combat . | . . . Combat . | . . . Robot Hacks Applied . | . . . Relay Couplers Released . | . . . Fabnet Peak Effective % . | . . . Robots Rewired . | . . . Allies Hacked . | . . . Hacks Repelled . | . . . Allies | -11 -10 -9 -------- Run | Yrd Mat Mat Total Allies . | . . . Largest Group . | . . . Highest-Rated Group . | . . . Highest-Rated Ally . | . . . Total Orders . | . . . Ally Attacks . | . . . Total Damage . | . . . Kills . | . . . Allies Corrupted . | . . . Allies Melted . | . . . Intel | -11 -10 -9 ------- Run | Yrd Mat Mat Robot Analysis Total . | . . . Derelict Logs Recovered . | . . . Drone Launches . | . . . Drone Recoveries . | . . . Exploration | -11 -10 -9 ------------- Run | Yrd Mat Mat Turns Passed 4896 | 73 2417 2406 Spaces Moved 1938 | 45 1088 805 Core 12 | 12 . . Treads 1926 | 33 1088 805 Legs . | . . . Wheels . | . . . Hover . | . . . Flight . | . . . Fastest Speed 50 | 50 160 160 Average Speed 212 | 130 195 239 Slowest Speed 320 | 160 240 320 Overloaded Moves . | . . . Propulsion Burnouts . | . . . Robots Hopped . | . . . Cave-ins Triggered . | . . . Exploration Rate (%) 51 | 4 91 59 Regions Visited 2 Branch Regions . Pre-discovered Areas . | . . . Known Exits Taken . | . . . Unknown Exits Taken 2 | 1 1 . Scrap Searched . | . . . Spaces Dug . | . . . Terrain Destroyed 6 | . 6 . Melee . | . . . Projectile . | . . . AOE 6 | . 6 . Terrain Rammed . | . . . Walls Destroyed . | . . . Machines Disabled . | . . . Actions | -11 -10 -9 --------- Run | Yrd Mat Mat Total 2347 | 60 1235 1052 Wait 86 | . 15 71 Move 1936 | 44 1087 805 Hop . | . . . Pick Up 65 | 9 32 24 Fast Attach . | . . . Attach 28 | 6 5 17 Detach . | . . . Swap 2 | . 2 . Drop 20 | 1 14 5 Fire 202 | . 76 126 Melee . | . . . Ram . | . . . Kick . | . . . Crush 8 | . 4 4 Escape Stasis . | . . . Rewire . | . . . Trap . | . . . Miscellaneous . | . . . Route ------- -11/Scrapyard -10/Materials (discovered 5 exits: *Mat x3 / *Min x2) -9/Materials (discovered 3 exits: [*Min] / [*Sto x2]) History --------- Turn | Location | Event 5 | -11/Scrapyard | Discovered new exit (range 15) 74 | -11/Scrapyard | Entered Materials 172 | -10/Materials | Identified exit to Mines 305 | -10/Materials | Build established: Mutant 386 | -10/Materials | Discovered new exit (range 7) 1141 | -10/Materials | Discovered new exit (range 11) 1684 | -10/Materials | Discovered new exit (range 14) 2491 | -10/Materials | Entered another Materials area 2491 | -9/Materials | Evolved 2 slots: Utility x2 2771 | -9/Materials | Lost 4 parts (1p1n2w) 3887 | -9/Materials | Core integrity fell below 50% 3976 | -9/Materials | Repaired Imp. Treads 4132 | -9/Materials | Discovered new exit (range 13) 4287 | -9/Materials | Core integrity fell below 20% 4394 | -9/Materials | Discovered new exit (range 14) 4439 | -9/Materials | Build established: Scavenger-Mutant 4533 | -9/Materials | Discovered new exit (range 11) 4765 | -9/Materials | Build established: Mutant 4897 | -9/Materials | Destroyed by Explosive Trap Last Messages --------------- 04511_ A-02 Transporter destroyed. 04516_ Acquired 2 matter. 04533_ EXIT=FOUND 04538_ W-16 Scout Hover Unit blasted off. 04538_ W-16 Scout knocked back. 04541_ Acquired 39 matter. 04553_ K-01 Serf collects debris. 04597_ K-01 Serf cleans the Terminal. 04619_ W-16 Scout destroyed. 04634_ Acquired 8 matter. 04634_ U-05 Engineer builds a Door. 04646_ R-06 Scavenger collects Lgt. Ion Engine. 04656_ R-06 Scavenger collects Hover Unit. 04679_ K-01 Serf cleans the Recycling Unit. 04706_ Acquired Particle Cannon. 04707_ K-01 Serf cleans the Recycling Unit. 04709_ Acquired Particle Cannon. 04872_ K-01 Serf cleans the Hadron Collector. 04897_ Triggered Explosive Trap. 04897_ An explosion rips through the floor. Map ----- +----------------------------------------------------+ | ?????????????????????????????????????????????????? | | ?????????????????????????????????????????? ??????? | | ????????????????????????????????????? ??? ??????? | | ??????????????????????????????????? ??/### ??? | | ?????????????????????????????????? ? ???? | | ?????????????????????????????????? ???? | | ?????????????????????????????????? "" ???? | | ???????????????????????????????????# T" #???? | | ???????????????????????????????????# "" #???? | | ???????????????????????????????????# #???? | | ????????????????????????????????#### ##### | | ?????????????????????????????????==# ## T | | ?????????????????????????????????==# """ ## | | ????????????????????????????????? # """ ## | | ?????????????????????????????????# # """ # | | ?????????????????????????????????# # | | ?????????????????????????????????# # | | ?????????????????????????????????# #### / | | ?????????????????????????????????# #??# # | | ?????????????????????????????????# #??# # | | ?????????????????????????????????# #??# %#### | | ?????????????????????????????????# % #??# | | ????????????????????? ???????????# #??# % | | ?????????#####??????? ??########## #??# "" | | ?????????# ######+### T #% #??# % """ | | ???????? # % ##@ #% ##??# """ | | ??????? < oa # ###### | | ?????????# ## k # # # % | | ?????????# ##### ## u + %+= # | | ????????????????#### % ## """" # # + | | ????????????????#" # """" # # # | | ????????????????#"" # """" # # # | | ????????????????#|| # # # # | | ????# ????????#"" < ########## # ######## | | ????+ ????????#!! #????????# # #??????? | | ????# #???????#"" #????????# # #?###### | | ????# ???????#" #????????# ######?# | | ????# ??????#####= ########### #####?## | | ????# ##+####T### * # ## # # | | ????# *[!![ + ## # """" # | | ????# ![!%! # ## # """" # | | ????# !! %!!= # ## # """" ## # | | ????# ! % """ # ## # ## # | | ????# """ # ## % # """" ## # | | ????# """ # ##% + """" ## # | | ##### + ## %# """" ## # | | %% # ##% # ## # | | ######+############% %#####+### # | | ##########% % #?# # """ # % % | | ????####### ! #?# !# """ # | +----------------------------------------------------+ Best States ------------- Heat Dissipation 28 Energy Generation 12 Energy Capacity 265 Matter Stores 300 Matter Capacity 300 Sight Range 16 Terrain Scan Density 10 Power Shielding 33 Propulsion Shielding 33 Evasion (%) 50 Recoil Reduction 2 Offensive Hacking 10 Item Schematics ----------------- None Robot Schematics ------------------ None Fabricated ------------ Nothing Alien Tech Used ----------------- None Achievements -------------- None Challenges ------------ None Game ------ Seed ScanRocketJammer Manual? 0 Play Time 00:27:36 Cumulative 15.7 hours Start 2024.04.06 @ 19:51:09 End 2024.04.06 @ 20:17:04 Sessions 1 Manual Loads 0 Difficulty Rogue Special Mode None Game No. 21 Rogue 21 Adventurer 0 Explorer 0 Win Type - Total 0 Types 0/0/0/0/0/0/0/0/0 Lore% 17 Gallery% 17 Achievement% 15 Wizard Run 0 Options --------- Layout 0 ASCII 0 Keyboard 0 Movement Numpad Keybinds 0 Fullscreen 1 Font 18/SmallcapsGlow Map View 76x50 Zoom Use 0% Tactical HUD 1 Map Filters NONE Filters NONE Steam 1 RUN: 6e42d7a5-e576-4e8f-9d0a-ad813d3b3ca4